Cogmind - Beta 16 --- EXPLORER MODE // 2026.01.29 @ 14:51:08 Player: K.K.Y. Result: Destroyed by J1-8QL(R) with Subdweller Machine Gun Performance ------------- Evolutions (0) 0 Regions Visited (3) 600 Robots Destroyed (50) 250 Value Destroyed (1284) 1284 Prototype IDs (12) 240 Alien Tech Used (0) 0 Bonus (-197) -197 TOTAL SCORE: 2177 Bonus ------- Friendly Fire -197 Cogmind --------- Core Integrity 0/250 Matter 258/300 Energy 170/170 System Corruption 0% Temperature Cool (0) Movement Walking (340) Ox3 Location -10/Subcaves Parts ------- > --- POWER (1) -------- Makeshift Power Source > --- PROPULSION (2) --- Cargo Legs > --- UTILITY (3+2) ---- Improved Heat Sink (+) Improved Heat Sink (+) Humpback > --- WEAPON (2) ------- Barrage Gun Heavy Battle Rifle > --- INVENTORY (35) --- Light Treads Spiked Treads Medium Storage Unit Huge Storage Unit Huge Storage Unit Humpback Humpback Humpback Structural Scanner Improved Terrain Scanner Makeshift System Shield Beam Rifle Particle Gun Makeshift Laser Heavy Battle Rifle Slug Cannon Dirty Datajack (20) Dirty Datajack (20) Mining Laser Peak State ------------ > --- POWER ------------ Makeshift Power Source > --- PROPULSION ------- Cargo Legs > --- UTILITY ---------- Improved Heat Sink Improved Heat Sink Humpback > --- WEAPON ----------- Barrage Gun Heavy Battle Rifle > --- INVENTORY -------- Light Treads Spiked Treads Medium Storage Unit Huge Storage Unit Huge Storage Unit Humpback Humpback Humpback Structural Scanner Improved Terrain Scanner Makeshift System Shield Beam Rifle Particle Gun Makeshift Laser Heavy Battle Rifle Slug Cannon Dirty Datajack Dirty Datajack Mining Laser [Rating: 39] Favorites ----------- Power Ion Engine Engine Ion Engine Power Core Light Nuclear Core Propulsion Light Treads Treads Light Treads Leg Cargo Legs Utility Improved Heat Sink Device Improved Heat Sink Storage Medium Storage Unit Weapon Particle Gun Energy Gun Particle Gun Ballistic Gun Assault Rifle Special Weapon Mining Laser Build | -11 -10 -10 -10 ------- Run | Yrd Mat Min Sub Slots Evolved 1 | . 1 . . Power . | . . . . Propulsion . | . . . . Utility 1 | . 1 . . Weapon . | . . . . Parts Attached 26 | 6 5 3 12 Power 5 | 1 2 . 2 Engine 4 | 1 2 . 1 Core 1 | . . . 1 Reactor . | . . . . Propulsion 5 | 2 . . 3 Treads 4 | 2 . . 2 Leg 1 | . . . 1 Wheel . | . . . . Hover . | . . . . Flight . | . . . . Utility 8 | 1 2 1 4 Device 5 | . 2 1 2 Storage 3 | 1 . . 2 Processor . | . . . . Hackware . | . . . . Protection . | . . . . Artifact . | . . . . Weapon 8 | 2 1 2 3 Energy Gun 3 | . . 2 1 Energy Cannon . | . . . . Ballistic Gun 4 | 2 . . 2 Ballistic Cannon . | . . . . Launcher . | . . . . Special Weapon 1 | . 1 . . Impact Weapon . | . . . . Slashing Weapon . | . . . . Piercing Weapon . | . . . . Special Melee Weapon . | . . . . Unidentified Prototypes . | . . . . Parts Lost 7 | . . 1 6 Power 1 | . . . 1 Propulsion 1 | . . . 1 Utility 2 | . . . 2 Weapon 3 | . . 1 2 Highest Loss Streak 3 | . . 1 3 To Critical Strikes 1 | . . 1 . Average Backups 9 | 1 5 8 11 Power . | . . . . Propulsion . | . . 1 . Utility 5 | . 2 5 6 Weapon 2 | . 2 2 3 Tool/Special . | . . . . Unused Backups 16 | . 2 . 14 Power . | . . . . Propulsion 2 | . . . 2 Utility 8 | . 2 . 6 Weapon 4 | . . . 4 Tool/Special 2 | . . . 2 Average Slot Usage (%) 80 | . 77 99 74 Engine 6 | . 12 12 2 Core 2 | . . . 3 Treads 13 | . 25 25 5 Leg 4 | . . . 7 Device 18 | . 2 25 22 Storage 11 | . 12 12 10 Energy Gun 9 | . . 18 9 Ballistic Gun 12 | . 24 3 10 Special Weapon 1 | . . 2 . Peak Build Rating 39 | 6 9 13 39 Average Rating 20 | 4 6 12 28 On Entrance 6 | . 6 9 12 Avg Prop Armor Cover (%) . | . . . . Naked Turns . | . . . . Heaviest Build 213 | 19 21 23 213 Greatest Support 55 | 40 40 40 55 Greatest Overweight (x) 3 | . . . 3 Average Overweight (x) . | . . . . Largest Inventory Capacity 35 | 10 10 10 35 Average Capacity 15 | 9 10 10 19 Most Carried 23 | 5 10 9 23 Average Carried 10 | 1 5 8 12 Final Capacity 35 | 10 10 10 35 Final Carried 22 | 2 9 9 22 Class Distribution -------------------- 77% | Hacker-Mutant 21% | Hauler-Mutant Dominant Class ---------------- Hacker-Mutant | -10/Materials Hacker-Mutant | -10/Mines Hacker-Mutant | -10/Subcaves Resources | -11 -10 -10 -10 ----------- Run | Yrd Mat Min Sub Matter Collected 1198 | 228 365 78 527 Remotely . | . . . . Salvage Created 1679 | 116 719 144 700 Parts 122 | 6 45 19 52 Haulers Intercepted 2 | . 2 . . Recyclers Shooed 1 | . 1 . . Parts Field Recycled . | . . . . Retrieved Matter . | . . . . Parts Self-Destructed . | . . . . Prevented . | . . . . Parts Restored . | . . . . Kills | -11 -10 -10 -10 ------- Run | Yrd Mat Min Sub Combat Hostiles Destroyed 35 | . 11 7 17 Guns 35 | . 11 7 17 Classes Destroyed 13 | 2 4 2 5 Builder 2 | . 2 . . Tunneler 4 | 2 . 2 . Hauler 2 | . 2 . . Recycler 2 | 1 1 . . Turret 2 | . . . 2 Watcher 3 | . 3 . . Swarmer 6 | . . 4 2 Grunt 12 | . 11 1 . Sentry 1 | . . . 1 Artisan 1 | . . . 1 Subdweller 14 | . . . 14 Zionite 2 | . . . 2 Assembled 2 | . . 2 . Best Kill Streak 4 | 2 4 2 4 Combat Bots Only 3 | . 3 2 2 Max Kills in Single Turn 1 | 1 1 1 1 Gunslinging . | . . . . Exploded . | . . . . Melee . | . . . . Uniques/NPCs Destroyed . | . . . . Combat | -11 -10 -10 -10 -------- Run | Yrd Mat Min Sub Hostile Shots Fired 190 | . 50 35 105 Missed 57 | . 11 12 34 Hits 133 | . 39 23 71 Projectile 133 | . 39 23 71 AOE 2 | . . . 2 Critical Strikes 1 | . . 1 . Damage Taken 1321 | . 313 148 860 Core 262 | . 46 11 205 Absorbed by Shields . | . . . . Ignored by Resistances 789 | . 193 98 498 Core Remaining (%) 100 | 100 . . . Volleys Fired 196 | 4 42 40 110 Largest 2 | 2 2 2 2 Hottest 165 | 40 120 165 165 Shots Fired 388 | 8 84 76 220 Gun 332 | 8 83 56 185 Cannon . | . . . . Launcher . | . . . . Special 56 | . 1 20 35 Kinetic 204 | 8 83 19 94 Thermal 184 | . 1 57 126 Explosive . | . . . . Electromagnetic . | . . . . Robot Hit Streak 34 | 7 34 5 19 Robot Miss Streak 3 | . 1 3 1 Penetration Max . | . . . . Secondary Targets 5 | . 4 . 1 Max Gunslinging Chain 1 | . 1 . 1 Shots Hit Robots 212 | 7 71 17 117 Core Hits 85 | 4 33 10 38 Critical Kills . | . . . . Critical Parts Destroyed 1 | . . . 1 Critical Strikes 2 | . . . 2 Destroy 2 | . . . 2 Melee Attacks . | . . . . Impact . | . . . . Slashing . | . . . . Piercing . | . . . . Sneak Attacks . | . . . . Combat Hostiles . | . . . . Follow-up Attacks . | . . . . Damage Inflicted 3381 | 91 952 261 2077 Guns 3369 | 91 952 249 2077 Cannons . | . . . . Explosions . | . . . . Melee . | . . . . Ramming 12 | . . 12 . Kinetic 2501 | 91 952 114 1344 Thermal 868 | . . 135 733 Explosive . | . . . . Electromagnetic . | . . . . Impact . | . . . . Slashing . | . . . . Piercing . | . . . . Highest Corruption . | . . . . Average Corruption . | . . . . Corruption Purged . | . . . . Corruption Blocked . | . . . . Overload Shots . | . . . . Overflow Damage . | . . . . Projectiles . | . . . . Explosions . | . . . . Melee . | . . . . Knockbacks . | . . . . Impact . | . . . . Kinetic . | . . . . Secondary . | . . . . Self-Inflicted Damage . | . . . . Shots . | . . . . Rammed 1 | . . 1 . Targets Rammed 1 | . . 1 . Kicked . | . . . . Crushed . | . . . . Highest Temperature 126 | . 20 54 126 Average Temperature 28 | . 7 23 40 Received Heat Transfer 531 | . 285 9 237 Siege Activations . | . . . . Martial Activations . | . . . . Shielding Activations . | . . . . Robots Disrupted . | . . . . Combat Hostiles . | . . . . Robots Corrupted . | . . . . Combat Hostiles . | . . . . Parts Fried . | . . . . Impact Corruptions . | . . . . Robots Melted . | . . . . Combat Hostiles . | . . . . Parts Melted 3 | . . . 3 Heat Transferred 2109 | . . 333 1776 Parts Sabotaged . | . . . . Parts Stolen . | . . . . Parts Stripped . | . . . . Power Chain Reactions . | . . . . Alert | -11 -10 -10 -10 ------- Run | Yrd Mat Min Sub Maximum Alert Level . | . . . . Low Security (%) 100 | 100 100 100 . Level 1 . | . . . . Level 2 . | . . . . Level 3 . | . . . . Level 4 . | . . . . Level 5 . | . . . . High Security . | . . . . Max Security . | . . . . Peak Influence 140 | 5 140 50 . Initial . | . . . . Average 10 | 1 18 2 . Influence Increases 664 | 15 373 131 145 Destroy 0b10 Robot/C 420 | . 220 100 100 Destroy 0b10 Robot/NC 65 | 15 40 10 . Destroy Leader 80 | . 60 20 . Allied During Kill 1 | . . 1 . Successful Hack 19 | . 19 . . Disable Machine 4 | . 4 . . Lose Combat Pursuer 75 | . 30 . 45 Influence Decreases 664 | 15 373 131 145 Time Decay 639 | 15 373 126 125 Lost Part 25 | . . 5 20 Squads Dispatched 2 | . 2 . . Investigation 2 | . 2 . . Extermination . | . . . . Reinforcement . | . . . . Assault . | . . . . Garrison . | . . . . Intercept . | . . . . Searches Triggered . | . . . . Construction Impeded . | . . . . Haulers Reinforced . | . . . . Active Scanning Responses . | . . . . Cargo Convoy Interrupts . | . . . . Stealth | -11 -10 -10 -10 --------- Run | Yrd Mat Min Sub Distress Signals 1 | . 1 . . Communications Jammed . | . . . . Distress Signals . | . . . . Times Spotted 53 | . 16 12 25 Peak Tracking Total 6 | . 6 4 4 Tactical Retreats 6 | . 1 . 5 Traps | -11 -10 -10 -10 ------- Run | Yrd Mat Min Sub Traps Triggered 1 | . . . 1 Indirectly . | . . . . Trap Hack Attempts . | . . . . Triggered . | . . . . Disarmed 4 | . 4 . . Reprogrammed 1 | . 1 . . Reused . | . . . . Traps Extracted . | . . . . Installed . | . . . . Triggered . | . . . . Machines | -11 -10 -10 -10 ---------- Run | Yrd Mat Min Sub Machines Disabled 3 | . 1 . 2 Max in Single Turn 1 | . 1 . 1 Machines Repaired . | . . . . Machines Dismantled . | . . . . Machines Sabotaged . | . . . . Overloaded Fab Kills . | . . . . Hacking | -11 -10 -10 -10 --------- Run | Yrd Mat Min Sub Machines Accessed 13 | . 9 . 4 Terminals 7 | . 7 . . Fabricators . | . . . . Repair Stations . | . . . . Recycling Units 2 | . 2 . . Scanalyzers . | . . . . Garrison Access . | . . . . Total Hacks 31 | . 22 . 9 Successful 26 | . 17 . 9 Failed 5 | . 5 . . Catastrophic . | . . . . Database Lockouts . | . . . . Manual 7 | . 7 . . Terminals 19 | . 19 . . Fabricators . | . . . . Repair Stations . | . . . . Recycling Units 3 | . 3 . . Scanalyzers . | . . . . Garrison Access . | . . . . Terminal Hacks 17 | . 8 . 9 Record 6 | . . . 6 Robot Analysis 2 | . 2 . . Open Door 1 | . . . 1 Locate Traps 4 | . 4 . . Disarm Traps 1 | . 1 . . Reprogram Traps 1 | . 1 . . Proto ID Catalog 1 | . . . 1 Release Object 1 | . . . 1 Fabricator Hacks . | . . . . Repair Station Hacks . | . . . . Recycling Unit Hacks 3 | . 3 . . Retrieve Components 3 | . 3 . . Scanalyzer . | . . . . Garrison Access Hacks . | . . . . Unauthorized Hacks 6 | . 6 . . Terminals 6 | . 6 . . Botnet 6 | . 6 . . Fabricators . | . . . . Repair Stations . | . . . . Recycling Units . | . . . . Scanalyzers . | . . . . Garrison Access . | . . . . Data Cores Recovered . | . . . . Used . | . . . . Hacking Detections 7 | . 7 . . Full Trace Events 3 | . 3 . . Feedback Events . | . . . . Feedback Blocked . | . . . . Robot Schematics Acquired . | . . . . Robots Built . | . . . . Authchips . | . . . . Time . | . . . . Total Robot Build Rating . | . . . . Part Schematics Acquired . | . . . . Parts Built . | . . . . Authchips . | . . . . Time . | . . . . Total Part Build Rating . | . . . . Part Studies Acquired . | . . . . Parts Repaired . | . . . . Time . | . . . . Parts Recycled . | . . . . Recycled Matter . | . . . . Retrieved Matter . | . . . . Retrieved Components 2 | . 2 . . Parts Scanalyzed . | . . . . Part Schematics Acquired . | . . . . Parts Damaged . | . . . . Bothacking | -11 -10 -10 -10 ------------ Run | Yrd Mat Min Sub Used RIF Installer . | . . . . Robots Hacked . | . . . . Non-combat . | . . . . Combat . | . . . . Robot Hacks Applied . | . . . . Relay Couplers Released . | . . . . Fabnet Peak Effective % . | . . . . Robots Rewired . | . . . . Allies Hacked . | . . . . Hacks Repelled . | . . . . Allies | -11 -10 -10 -10 -------- Run | Yrd Mat Min Sub Total Allies 3 | . . 3 . Largest Group 3 | . . 3 3 Highest-Rated Group 40 | . . 40 40 Highest-Rated Ally 16 | . . 16 16 Total Orders . | . . . . Ally Attacks 35 | . . 26 9 Total Damage 197 | . . 181 16 Kills 6 | . . 6 . Allies Corrupted . | . . . . Allies Melted . | . . . . Intel | -11 -10 -10 -10 ------- Run | Yrd Mat Min Sub Active Infowar (turns) 4016 | . 164 1378 2474 Sensors 3419 | . 162 1378 1879 Structural 2751 | . 164 334 2253 Robot Analysis Total 2 | . 2 . . Derelict Logs Recovered 1 | . . . 1 Drone Launches . | . . . . Drone Recoveries . | . . . . Exploration | -11 -10 -10 -10 ------------- Run | Yrd Mat Min Sub Turns Passed 7135 | 98 1518 1378 4141 Spaces Moved 3398 | 64 849 672 1813 Core 26 | 26 . . . Treads 2036 | 38 849 672 477 Legs 1336 | . . . 1336 Wheels . | . . . . Hover . | . . . . Flight . | . . . . Fastest Speed 50 | 50 160 160 130 Average Speed 174 | 115 160 160 188 Slowest Speed 340 | 160 160 160 340 Overloaded Moves . | . . . . Propulsion Burnouts . | . . . . Robots Hopped . | . . . . Potential Cave-ins . | . . . . Cave-ins Triggered . | . . . . Exploration Rate (%) 75 | 5 99 100 96 Regions Visited 3 Branch Regions 2 Pre-discovered Areas 1 | . . . 1 Known Exits Taken 3 | 1 1 1 . Unknown Exits Taken . | . . . . Scrap Searched 12 | . . 1 11 Spaces Dug . | . . . . Terrain Destroyed 1 | . . 1 . Melee . | . . . . Projectile 1 | . . 1 . AOE . | . . . . Terrain Rammed . | . . . . Walls Destroyed . | . . . . Machines Disabled . | . . . . Actions | -11 -10 -10 -10 --------- Run | Yrd Mat Min Sub Total 4112 | 80 923 857 2252 Wait 429 | . 12 140 277 Move 3395 | 63 848 671 1813 Hop . | . . . . Pick Up 38 | 7 11 1 19 Fast Attach 3 | 1 1 . 1 Attach 15 | 5 1 1 8 Detach 3 | . . . 3 Swap 23 | . 4 3 16 Drop 9 | . 4 . 5 Fire 196 | 4 42 40 110 Melee . | . . . . Ram . | . . . . Kick . | . . . . Crush 1 | . . 1 . Escape Stasis . | . . . . Rewire . | . . . . Trap . | . . . . Miscellaneous . | . . . . Route ------- -11/Scrapyard -10/Materials (discovered 5 exits: *Mat x3 / *Min x2) -10/Mines (discovered 3 exits: *Mat x2 / *Sub) -10/Subcaves (discovered 4 exits: *Mat x2 / *Rec / [*Scr]) History --------- Turn | Location | Event 8 | -11/Scrapyard | Identified exit to Materials 8 | -11/Scrapyard | Discovered exit to Materials (range 15) 99 | -11/Scrapyard | Entered Materials 99 | -10/Materials | Evolved 1 slot: Utility x1 128 | -10/Materials | Identified exit to Mines 128 | -10/Materials | Discovered exit to Mines (range 16) 309 | -10/Materials | Build established: Hacker-Mutant 327 | -10/Materials | Discovered exit to Mines (range 15) 725 | -10/Materials | Identified exit to Materials 725 | -10/Materials | Discovered exit to Materials (range 16) 1028 | -10/Materials | Discovered exit to Materials (range 4) 1486 | -10/Materials | Discovered exit to Materials (range 15) 1617 | -10/Materials | Entered Mines 1861 | -10/Mines | Assembled infested the area 1863 | -10/Mines | Assisted by bots powering up and referring to "LRC-V3" 1866 | -10/Mines | Assisted by a Guerilla fighting off Assembled 1890 | -10/Mines | Discovered exit to Materials (range 9) 2056 | -10/Mines | Discovered exit to Materials (range 5) 2200 | -10/Mines | Identified exit to Subcaves 2200 | -10/Mines | Discovered exit to Subcaves (range 8) 2995 | -10/Mines | Entered Subcaves 2995 | -10/Subcaves | Accompanied by 3 allies 2996 | -10/Subcaves | Approached by a straggling Scientist 3037 | -10/Subcaves | Scientist uncovered a shortcut to Scraptown 3107 | -10/Subcaves | Visited Clippyterm 3112 | -10/Subcaves | Identified exit to Recycling 3112 | -10/Subcaves | Learned Factory stockpile data 3533 | -10/Subcaves | Shifting Twisted Machinery released Shrapnel Trap 3533 | -10/Subcaves | Shifting Twisted Machinery released Flamer 3629 | -10/Subcaves | Core integrity fell below 50% 3634 | -10/Subcaves | Lost 3 allies 3833 | -10/Subcaves | Visited 4L-MR0's lab 3863 | -10/Subcaves | Found Cargo Legs 3864 | -10/Subcaves | Attached Cargo Legs, gained temporary slots: Utility x2 3947 | -10/Subcaves | Learned location of Zion (-7) 3947 | -10/Subcaves | Met a Zionite searching for "candidates" 4458 | -10/Subcaves | A swath of the cavern ceiling suddenly collapsed 4560 | -10/Subcaves | A swath of the cavern ceiling suddenly collapsed 4749 | -10/Subcaves | Identified exit to Materials 4749 | -10/Subcaves | Discovered exit to Materials (range 12) 4759 | -10/Subcaves | Shifting Twisted Machinery released Barrage Gun 4767 | -10/Subcaves | Shifting Twisted Machinery released Hvy. Battle Rifle 4903 | -10/Subcaves | Shifting Twisted Machinery released Flamer 4905 | -10/Subcaves | Lost 3 parts (1u2w) 5548 | -10/Subcaves | Core integrity fell below 20% 5886 | -10/Subcaves | Build established: Hauler-Mutant 6082 | -10/Subcaves | Ambushed by Subdwellers from Twisted Machinery 6535 | -10/Subcaves | Discovered exit to Materials (range 8) 6869 | -10/Subcaves | Learned Materials security intel 7136 | -10/Subcaves | Destroyed by J1-8QL(R) with Subdweller Machine Gun Last Messages --------------- 05991_ Acquired Hvy. Battle Rifle. 06101_ VA-E0D(R) destroyed. 06107_ 80-CO4(R) destroyed. 06127_ Acquired Humpback. 06128_ Acquired 41 matter. 06135_ Acquired 15 matter. 06328_ Acquired 5 matter. 06535_ EXIT=FOUND: MATERIALS 06600_ Acquired 9 matter. 06804_ Y-45 Defender destroyed. 06851_ Acquired 7 matter. 06864_ Acquired Lgt. Treads. 06869_ Acquired derelict log, extracted data. Data stored: Materials security intel. 06882_ Acquired Beam Rifle. 07055_ Subatomizers dissect the Disposable Heat Sink. 07064_ Acquired 10 matter. 07066_ Subatomizers dissect the Disposable Heat Sink. Map ----- +----------------------------------------------------+ | ##* ##?????????????????????????????## #### | | ###?????????????????????????????## ##### | | ######?????????????????????????????## ##### | | #######????????????????????????????## ###?## | | # "###"###????????????????????????????## ######### | | # # ##????????????????????????????#####?###### | | # ## ###???????????????????????????######### | | # ####???????????????????????????####### | | ###???????????????????????????## ### | | # ##???????????????????????????## | | ## ###???????????????????????????## # | | ## ####???????????????????????????## ## | | ## ""###??????????????#######??########## ## | | #""" #" ##????????#############??########## ## | | "" # ""#####?????#########"""######" ## ### | | ###### "#####?????###"####""#"####### ## ##### | | ###### "" ##?????##;"#"##""##""###"#" ## ###### | | #### #####????### ;"####" """"" #"#" ##### | | ## ######??###### "#"####""#"###### #### | | ###############;#""##### "#"#### ### | | ######### " " "######""###### ## | | ## &!### #" # "" ;###"###""##### #### | | ## """&%!%"""###### #;#""#" "##### ###### | | # """""&!&#"#"####"# ;### ####### ####### | | """&&= #"##"#### ;########### ###### | | "# ### " ##"#;@#######??### #### ## | | # # ?##"# ##??????#### ##### | | ## #""""" ###"# ;############ #### | | ### """""? #""#";;R#? # #### ## | | ######""""""""#####;; | | ######""""?" "# ?## | | ##???##"?????"## ?##### # ## | | ######????????????#####?################## | | #####??????????????####????################# #### | | ????????????????????????????????????????########## | | ??????????????????????????????????????????######?? | | ?????????????????????????????????????????????????? | | ?????????????????????????????????????????????????? | | ?????????????????????????????????????????????????? | | ?????????????????????????????????????????????????? | | ?????????????????????????????????????????????????? | | ?????????????????????????????????????????????????? | | ?????????????????????????????????????????????????? | | ?????????????????????????????????????????????????? | | ?????????????????????????????????????????????????? | | ?????????????????????????????????????????????????? | | ?????????????????????????????????????????????????? | | ?????????????????????????????????????????????????? | | ?????????????????????????????????????????????????? | | | +----------------------------------------------------+ Best States ------------- Heat Dissipation 53 Energy Generation 15 Energy Capacity 250 Matter Stores 300 Matter Capacity 300 Sight Range 16 Robot Scan Range 14 Terrain Scan Density 10 Resistance: KI 35 Resistance: TH 35 Resistance: EX 35 Resistance: EM 35 Resistance: I 35 Resistance: S 35 Resistance: P 35 Evasion (%) 55 Recoil Reduction 2 Offensive Hacking 20 Item Schematics ----------------- None Robot Schematics ------------------ None Fabricated ------------ Nothing Repaired ---------- Nothing Studied --------- None Alien Tech Used ----------------- None Achievements -------------- None Challenges ------------ None Game ------ Seed MultinovaAluminumScreen Manual? 0 Play Time 00:22:00 Cumulative 323.6 hours Start 2026.01.29 @ 14:31:11 End 2026.01.29 @ 14:51:08 Sessions 1 Manual Loads 0 Difficulty Explorer Special Mode None Game No. 509 Rogue 0 Adventurer 0 Explorer 509 Win Type - Total 0 Types 0/0/0/0/0/0/0/0/0/0 Lore% 77 Gallery% 70 Achievement% 56 Wizard Run 0 Options --------- Layout 1 ASCII 0 Keyboard 0 Movement Mouse Keybinds 1 Fullscreen 1 Font 24/Smallcaps Map View 50x35 Zoom Use 0% Tactical HUD 1 Map Filters NONE Filters NONE Steam 1 RUN: ef925e3f-47e8-4e77-95e0-ce2a9c1f0a9c